bitfinex/quotes_BTCUSD_20251113
["timestamp","ask_amount","ask_price","bid_price","bid_amount"]
[1763013426023,0.00022514,103370.0,103360.0,1.72945025]
[1763013426246,0.00022514,103370.0,103360.0,1.79286899]
[1763013426447,0.00022514,103370.0,103360.0,1.76286899]
[1763013426655,0.00022514,103370.0,103360.0,1.79972449]
[1763013426867,0.00022514,103370.0,103360.0,1.21748997]
[1763013427085,0.00022514,103370.0,103360.0,0.97057278]
[1763013427296,0.00022514,103370.0,103360.0,0.08451712]
[1763013427514,0.00022514,103370.0,103360.0,0.03388929]
[1763013427718,0.00022514,103370.0,103360.0,0.32313741]
[1763013427931,0.00168414,103370.0,103360.0,0.91912381]
[1763013428345,0.00168414,103370.0,103360.0,0.88537193]
[1763013430508,0.0002,103390.0,103380.0,0.04341874]
[1763013430759,0.01,103430.0,103420.0,0.323]
[1763013430968,0.01,103430.0,103420.0,1.80106671]
[1763013431179,0.01,103430.0,103420.0,1.82577872]
[1763013431387,0.01,103430.0,103420.0,1.84707289]
[1763013431625,0.01,103430.0,103420.0,1.84715057]
[1763013431822,0.01,103430.0,103420.0,1.78404887]
[1763013432030,0.01,103430.0,103420.0,2.18418628]
[1763013432249,0.01,103430.0,103420.0,2.15721897]
[1763013432446,0.01,103430.0,103420.0,0.59575725]
[1763013432652,0.01,103430.0,103420.0,1.77430629]
[1763013432880,0.01,103430.0,103420.0,1.80323326]
[1763013433295,0.003,103460.0,103440.0,0.19333454]
[1763013433502,0.003,103460.0,103450.0,0.62565326]
[1763013433716,0.003,103460.0,103450.0,0.83393068]
[1763013433923,0.003,103460.0,103450.0,0.01494731]
[1763013434170,0.003,103460.0,103450.0,0.90018183]
[1763013434799,0.003,103460.0,103450.0,0.92018183]
[1763013436133,0.003,103460.0,103450.0,1.11351194]
[1763013436340,0.003,103460.0,103450.0,1.17693068]
[1763013436539,0.00518596,103460.0,103450.0,1.15693068]
[1763013437179,0.00618596,103460.0,103450.0,0.92618183]
[1763013437385,0.00618596,103460.0,103450.0,0.96960057]
[1763013437596,0.00618596,103460.0,103450.0,1.16293068]
[1763013437799,0.00618596,103460.0,103450.0,0.92618183]
[1763013438007,0.00618596,103460.0,103450.0,0.04094731]
[1763013438210,0.00618596,103460.0,103450.0,0.58318183]
[1763013438442,0.00518596,103460.0,103450.0,0.57718183]
[1763013438855,0.00618596,103460.0,103450.0,0.58518183]
[1763013439273,0.00518596,103460.0,103450.0,0.57718183]
[1763013439479,0.00518596,103460.0,103450.0,0.59718183]
[1763013439687,0.00618596,103460.0,103450.0,0.60618183]
[1763013440852,0.00618596,103460.0,103450.0,0.79951194]
[1763013441049,0.00618596,103460.0,103450.0,0.60618183]
[1763013441251,0.11623596,103460.0,103450.0,0.009]
[1763013441458,0.20974596,103460.0,103450.0,0.009]
[1763013441658,0.05405596,103460.0,103450.0,0.009]
[1763013441901,0.05405596,103460.0,103450.0,0.332]
[1763013442101,0.20974596,103460.0,103450.0,0.332]
[1763013442278,0.20874596,103460.0,103450.0,0.323]
[1763013442842,0.20974596,103460.0,103450.0,0.331]
[1763013443049,0.77198048,103460.0,103450.0,0.008]
[1763013443456,0.9652919,103460.0,103450.0,0.008]
[1763013443672,0.77198048,103460.0,103450.0,0.008]
[1763013443785,0.9652919,103460.0,103450.0,0.008]
[1763013444448,0.0096665,103450.0,103420.0,0.32313741]
[1763013444687,0.65574452,103450.0,103420.0,0.00013741]
[1763013444887,0.65574452,103450.0,103420.0,0.32313741]
[1763013445275,0.65574452,103450.0,103420.0,0.00013741]
[1763013445453,0.84907559,103450.0,103420.0,0.00013741]
[1763013445648,0.04787,103430.0,103420.0,0.00713741]
[1763013445857,0.76579452,103430.0,103420.0,0.00713741]
[1763013446077,0.95916201,103430.0,103420.0,0.00713741]
[1763013446486,0.76579452,103430.0,103420.0,0.00013741]
[1763013446718,0.95916201,103430.0,103420.0,0.00013741]
[1763013446924,0.76579452,103430.0,103420.0,0.00013741]
[1763013447119,0.95916201,103430.0,103420.0,0.00013741]
[1763013447540,0.39692749,103430.0,103420.0,0.00013741]
[1763013447883,0.96016201,103430.0,103420.0,0.00913741]
[1763013448100,0.970162,103430.0,103420.0,0.00913741]
[1763013448302,0.969162,103430.0,103420.0,0.00013741]
[1763013448708,0.970162,103430.0,103420.0,0.00613741]
[1763013448941,1.06858235,103430.0,103420.0,0.00613741]
[1763013449144,0.60315691,103430.0,103420.0,0.00013741]
[1763013449366,1.17539142,103430.0,103420.0,0.00013741]
[1763013449575,0.7653327,103400.0,103360.0,0.01615725]
[1763013449779,0.7653327,103400.0,103360.0,0.01629714]
[1763013449988,0.14194,103390.0,103360.0,0.01629714]
[1763013450199,0.33538334,103390.0,103360.0,0.01629714]
[1763013450406,0.09564,103380.0,103360.0,0.00013989]
[1763013451034,0.2891048,103380.0,103360.0,0.00013989]
[1763013451244,0.06364,103370.0,103360.0,0.00013989]
[1763013451455,0.15928,103370.0,103360.0,0.00013989]
[1763013451946,0.15928,103370.0,103360.0,0.00713989]
[1763013452364,0.15928,103370.0,103360.0,0.00013989]
[1763013452574,0.15928,103370.0,103320.0,0.03349585]
[1763013452575,0.20318753,103360.0,103320.0,0.03349585]
[1763013452788,0.06364,103350.0,103320.0,0.35663577]
[1763013453011,0.15928,103350.0,103320.0,0.56237444]
[1763013453427,0.3624744,103350.0,103320.0,0.56237444]
[1763013453656,0.0463,103340.0,103320.0,0.56237444]
[1763013453837,0.14194,103340.0,103320.0,0.00013992]
[1763013454286,0.14194,103340.0,103320.0,0.00513992]
[1763013454902,0.14194,103340.0,103320.0,0.00013992]
[1763013455128,0.0473,103340.0,103320.0,0.57037444]
[1763013455343,0.001,103340.0,103330.0,1.09694804]
[1763013455628,0.001,103340.0,103330.0,0.34115889]
[1763013455841,0.001,103340.0,103330.0,0.323]
[1763013456062,0.001,103340.0,103330.0,0.88523452]
[1763013456744,0.001,103340.0,103330.0,0.323]
[1763013456963,0.001,103340.0,103330.0,0.88523452]
[1763013457158,0.09564,103360.0,103340.0,0.323]
[1763013457857,0.06364,103350.0,103340.0,0.323]
[1763013458375,0.06364,103350.0,103330.0,0.323]
[1763013458588,0.0463,103340.0,103330.0,0.323]
[1763013459315,0.0463,103340.0,103320.0,0.56237444]
[1763013459795,0.0463,103340.0,103330.0,0.323]
[1763013460012,0.0463,103350.0,103330.0,0.323]
[1763013460235,0.0463,103350.0,103330.0,0.88523452]
[1763013460464,0.14294,103350.0,103340.0,0.007]
[1763013460864,0.20558,103350.0,103330.0,0.323]
[1763013461332,0.20658,103350.0,103330.0,0.33]
[1763013462265,0.40009731,103350.0,103330.0,0.33]
[1763013462542,0.20658,103350.0,103330.0,0.33]
[1763013463171,0.20658,103350.0,103330.0,0.56923452]
[1763013463610,0.20658,103350.0,103330.0,0.007]
[1763013464553,0.20658,103350.0,103330.0,0.33]
[1763013465576,0.3528159,103340.0,103330.0,0.007]
[1763013465797,0.35281663,103340.0,103320.0,0.00013992]
[1763013466003,0.20558,103330.0,103320.0,0.00013992]
[1763013467525,0.20558,103330.0,103320.0,0.00813992]
[1763013467526,0.20658,103330.0,103320.0,0.00813992]
[1763013468207,0.001,103330.0,103320.0,0.57037444]
[1763013468372,0.001,103330.0,103320.0,0.89337444]
[1763013468739,0.001,103330.0,103320.0,0.33113992]
[1763013470075,1.03178881,103330.0,103320.0,0.00813992]
[1763013470316,0.20658,103330.0,103320.0,0.00813992]
[1763013470485,0.40013463,103330.0,103320.0,0.00813992]
[1763013470897,0.39913463,103330.0,103320.0,0.00013992]
[1763013471100,0.20558,103330.0,103320.0,0.00013992]
[1763013471304,0.10994,103330.0,103320.0,0.00013992]
[1763013471510,0.0463,103330.0,103320.0,0.00013992]
[1763013472093,0.0473,103330.0,103320.0,0.00613992]
[1763013472299,0.11094,103330.0,103320.0,0.00613992]
[1763013472522,0.40013463,103330.0,103320.0,0.00613992]
[1763013473214,0.41013462,103330.0,103320.0,0.00613992]
[1763013474240,1.23534343,103330.0,103320.0,0.00613992]
[1763013474598,1.23534343,103330.0,103310.0,0.0018664]
[1763013474751,0.20331205,103290.0,103260.0,0.08402234]
[1763013474989,0.0463,103270.0,103260.0,0.03396379]
[1763013475516,0.0463,103280.0,103260.0,0.8591726]
[1763013475725,0.0463,103280.0,103260.0,0.82567675]
[1763013475932,0.24961435,103290.0,103260.0,0.00046794]
[1763013476151,0.34525121,103290.0,103260.0,0.00046794]
[1763013476403,0.34525121,103290.0,103260.0,0.82567675]
[1763013476692,0.001,103270.0,103260.0,1.15667675]
[1763013476876,0.06464,103270.0,103260.0,0.00846794]
[1763013477082,0.05629999,103290.0,103260.0,0.82567675]
[1763013477290,0.0463,103290.0,103270.0,0.82520881]
[1763013477699,0.0463,103290.0,103270.0,0.323]
[1763013478552,0.06364,103280.0,103270.0,0.323]
[1763013478757,0.25728893,103280.0,103260.0,0.32546794]
[1763013478992,0.15928,103280.0,103260.0,0.32346794]
[1763013479249,0.0463,103270.0,103260.0,0.32346794]
[1763013479621,0.26061242,103290.0,103260.0,0.32346794]
[1763013479622,0.0473,103290.0,103260.0,1.14867675]
[1763013479838,0.0463,103290.0,103280.0,0.82520881]
[1763013480038,0.0463,103290.0,103270.0,1.14820881]
[1763013480039,0.001,103280.0,103270.0,1.14820881]
[1763013480691,0.06462,103280.0,103270.0,0.323]
[1763013480898,0.15648,103280.0,103260.0,0.32546794]
[1763013481109,0.15648,103280.0,103270.0,0.00097369]
[1763013481110,0.35012833,103280.0,103270.0,0.00097369]
[1763013481737,0.15648,103280.0,103270.0,0.00097369]
[1763013481951,0.00999999,103290.0,103270.0,0.8261825]
[1763013482221,0.0463,103310.0,103290.0,0.323]
[1763013482676,0.06362,103300.0,103290.0,0.323]
[1763013483123,0.001,103290.0,103280.0,0.323]
[1763013483575,0.1546996,103310.0,103280.0,0.323]
[1763013483817,0.09872,103300.0,103280.0,0.323]
[1763013484042,0.001,103300.0,103290.0,0.003]
[1763013484279,0.001,103300.0,103290.0,0.326]
[1763013485123,0.14502,103310.0,103290.0,0.323]
[1763013485324,0.06155,103300.0,103290.0,0.323]
[1763013485744,0.06155,103300.0,103280.0,0.004]
[1763013485973,0.06155,103300.0,103270.0,1.19683145]
[1763013486155,0.06255,103300.0,103290.0,0.005]
[1763013486326,0.001,103300.0,103290.0,0.005]
[1763013486486,0.14502,103310.0,103270.0,0.37162264]
[1763013486687,0.14502,103310.0,103290.0,0.323]
[1763013486914,0.001,103300.0,103290.0,0.323]
[1763013487718,0.001,103300.0,103290.0,1.14820881]
[1763013488120,0.04534,103320.0,103300.0,0.323]
[1763013488737,0.14406,103320.0,103300.0,0.323]
[1763013489002,0.06155,103310.0,103300.0,0.323]
[1763013489216,0.16027,103310.0,103280.0,0.35649585]
[1763013489433,0.16027,103310.0,103300.0,0.00646794]
[1763013489826,0.16027,103310.0,103300.0,0.00046794]
[1763013490056,0.001,103310.0,103300.0,0.00546794]
[1763013492655,0.001,103310.0,103300.0,1.15367675]
[1763013493233,0.001,103310.0,103300.0,0.32846794]
[1763013493644,0.001,103310.0,103300.0,1.41094968]
[1763013493820,0.001,103310.0,103300.0,1.25083469]
[1763013494254,0.001,103310.0,103300.0,1.44444553]
[1763013494930,0.14406,103350.0,103300.0,1.44912607]
[1763013495143,0.18954,103350.0,103320.0,0.323]
[1763013495430,0.14406,103350.0,103320.0,0.323]
[1763013495842,0.33757842,103350.0,103320.0,0.323]
[1763013496048,0.09872,103340.0,103320.0,0.323]
[1763013496346,0.10877,103330.0,103310.0,0.33954462]
[1763013496597,0.04722,103330.0,103310.0,0.33954462]
[1763013496800,0.33757851,103350.0,103310.0,1.16475343]
[1763013497013,0.14406,103350.0,103310.0,1.16475343]
[1763013497216,0.04722,103360.0,103330.0,1.14820881]
[1763013497683,0.33943994,103360.0,103330.0,1.14820881]
[1763013497875,0.34911486,103360.0,103330.0,0.323]
[1763013498018,0.15561492,103360.0,103330.0,0.323]
[1763013498222,0.09872,103350.0,103330.0,0.323]
[1763013498396,0.25039952,103360.0,103330.0,0.323]
[1763013498600,1.17432833,103360.0,103330.0,0.323]
[1763013498804,0.04722,103360.0,103330.0,0.003]
[1763013499418,0.04722,103360.0,103340.0,0.323]
[1763013499622,0.14594,103360.0,103340.0,0.323]
[1763013499820,0.06155,103350.0,103340.0,0.323]
[1763013500045,0.16027,103350.0,103340.0,0.323]
[1763013500588,0.16027,103350.0,103340.0,0.00013993]
[1763013500980,0.16027,103350.0,103340.0,0.00313993]
[1763013501618,0.16027,103350.0,103340.0,0.00013993]
[1763013501819,0.35378717,103350.0,103340.0,0.00413993]
[1763013502219,0.16027,103350.0,103340.0,0.00413993]
[1763013502422,0.35378717,103350.0,103340.0,0.00413993]
[1763013502626,0.16027,103350.0,103340.0,0.00413993]
[1763013502826,0.35378717,103350.0,103340.0,0.00413993]
[1763013503248,1.17899598,103350.0,103340.0,0.00413993]
[1763013504233,1.18899597,103350.0,103340.0,0.00413993]
[1763013505181,0.16027,103350.0,103340.0,0.00413993]
[1763013505632,0.16027,103350.0,103340.0,0.00013993]
[1763013505862,0.16027,103350.0,103340.0,0.00213993]
[1763013506074,0.35378717,103350.0,103340.0,0.00213993]
[1763013507003,0.33378717,103350.0,103340.0,0.00213993]
[1763013507785,1.16899597,103350.0,103340.0,0.00213993]
[1763013507984,1.26741632,103350.0,103340.0,0.00213993]
[1763013508186,0.19357485,103320.0,103300.0,0.0337392]
[1763013508530,0.09816,103310.0,103300.0,0.03420714]
[1763013508687,0.09816,103310.0,103300.0,0.35720714]
[1763013509283,0.09816,103310.0,103300.0,0.36020714]
[1763013510467,0.09816,103310.0,103300.0,0.35720714]
[1763013510968,0.03661,103310.0,103300.0,0.36220714]
[1763013511298,0.03661,103310.0,103300.0,0.35720714]
[1763013511498,0.04995,103320.0,103300.0,1.18241595]
[1763013511707,0.04995,103330.0,103300.0,1.18541595]
[1763013512142,0.14295,103330.0,103300.0,1.18541595]
[1763013512444,0.14295,103330.0,103300.0,1.18241595]
[1763013513604,0.14295,103330.0,103300.0,1.18541595]
[1763013514023,0.03661,103340.0,103320.0,0.323]
[1763013515194,0.03661,103340.0,103320.0,0.35849585]
[1763013515601,0.03661,103340.0,103320.0,0.325]
[1763013515807,0.20926,103330.0,103320.0,0.002]
[1763013516529,0.21893773,103330.0,103300.0,0.35720714]
[1763013516738,0.41249253,103330.0,103300.0,0.35720714]
[1763013516938,0.41249253,103330.0,103320.0,0.001]
[1763013517355,0.41249236,103330.0,103300.0,0.40773363]
[1763013517769,0.093,103320.0,103300.0,0.40873363]
[1763013519605,0.04995,103330.0,103300.0,0.27834434]
[1763013519818,0.03661,103340.0,103320.0,1.14820881]
[1763013520024,0.03661,103340.0,103320.0,0.35649585]
[1763013520232,0.03661,103340.0,103320.0,0.323]
[1763013521281,0.12961,103340.0,103320.0,0.323]
[1763013521500,0.12961,103340.0,103320.0,0.35649585]
[1763013521701,0.03661,103340.0,103320.0,0.35749585]
[1763013522550,0.04995,103350.0,103330.0,0.82520881]
[1763013522756,0.04995,103350.0,103320.0,1.37627685]
[1763013522967,0.04995,103350.0,103330.0,0.82520881]
[1763013523172,0.04995,103350.0,103330.0,0.08402234]
[1763013523591,0.14295,103350.0,103330.0,0.08402234]
[1763013524723,0.04995,103350.0,103330.0,0.08402234]
[1763013525800,0.04722,103360.0,103340.0,0.323]
[1763013526228,0.04908586,103370.0,103340.0,1.37524012]
[1763013526432,0.04908586,103370.0,103340.0,1.42576661]
[1763013526630,0.04908586,103370.0,103340.0,1.4354434]
[1763013526839,0.04908586,103370.0,103350.0,0.03349585]
[1763013527257,0.04908586,103370.0,103340.0,1.23437123]
[1763013527458,0.04908586,103370.0,103340.0,1.23237123]
[1763013527659,0.04908586,103370.0,103340.0,1.23337123]
[1763013527863,0.04908586,103370.0,103340.0,1.42690675]
[1763013528061,0.04908586,103370.0,103340.0,1.23337123]
[1763013528700,0.04908586,103370.0,103350.0,0.03349585]
[1763013528909,0.093,103360.0,103350.0,0.03349585]
[1763013529140,0.15931,103360.0,103350.0,0.03349585]
[1763013529361,0.15931,103360.0,103340.0,0.40816242]
[1763013529602,0.15931,103360.0,103340.0,0.40716242]
[1763013530063,0.15931,103360.0,103350.0,0.002]
[1763013530495,0.15931,103360.0,103340.0,0.40716242]
[1763013530700,0.15931,103360.0,103340.0,0.40916242]
[1763013531588,0.81453661,103370.0,103340.0,0.40916242]
[1763013531589,0.11626,103350.0,103340.0,0.40916242]
[1763013531806,0.11626,103350.0,103340.0,0.00214008]
[1763013532013,0.20926,103350.0,103340.0,0.00014008]
[1763013532862,0.00186586,103370.0,103340.0,0.00014008]
[1763013533066,0.00186586,103370.0,103360.0,0.88529686]
[1763013533486,0.05181586,103370.0,103360.0,0.323]
[1763013533713,0.11812586,103370.0,103360.0,0.323]
[1763013533929,0.21112586,103370.0,103350.0,0.323]
[1763013534160,0.15931,103360.0,103350.0,0.323]
[1763013535532,0.15931,103360.0,103340.0,0.13380469]
[1763013535533,0.91510748,103360.0,103340.0,0.13380469]
[1763013535761,0.39165717,103350.0,103340.0,0.13380469]
[1763013535986,0.19814,103350.0,103340.0,0.13380469]
[1763013537256,0.33829865,103370.0,103340.0,0.1695593]
[1763013537457,0.14481586,103370.0,103340.0,0.1695593]
[1763013537664,0.33829584,103370.0,103340.0,0.1695593]
[1763013537875,0.14481586,103370.0,103340.0,0.73185616]
[1763013538082,0.14481586,103370.0,103350.0,0.323]
[1763013538347,0.14481586,103370.0,103350.0,0.91905147]
[1763013538752,0.14481586,103370.0,103350.0,0.35675461]
[1763013539658,0.14481586,103370.0,103350.0,0.03375461]
[1763013539863,0.06033,103360.0,103350.0,0.03375461]
[1763013540070,0.15034,103360.0,103340.0,0.21808579]
[1763013540270,0.10972,103350.0,103340.0,0.4905593]
[1763013540712,0.25497311,103370.0,103340.0,0.4905593]
[1763013540971,0.33530602,103370.0,103340.0,1.10338265]
[1763013541209,0.04939,103350.0,103340.0,1.05285616]
[1763013542075,0.04939,103350.0,103340.0,1.10338265]
[1763013542279,0.04939,103350.0,103340.0,1.10438265]
[1763013542706,0.04939,103350.0,103340.0,1.10338265]
[1763013543484,0.04939,103350.0,103340.0,0.1675593]
[1763013543485,0.39581717,103350.0,103340.0,0.1675593]
[1763013543753,0.39581717,103350.0,103340.0,0.13680469]
[1763013544679,0.2023,103350.0,103340.0,0.13680469]
[1763013544905,0.2023,103350.0,103340.0,0.13380469]
[1763013545158,0.2023,103350.0,103340.0,0.13580469]
[1763013547488,0.04939,103350.0,103340.0,0.69810155]
[1763013547714,0.25497,103370.0,103340.0,0.69810155]
[1763013547715,0.33787576,103370.0,103340.0,0.69810155]
[1763013548157,0.14439586,103370.0,103340.0,0.69810155]
[1763013548346,0.14439586,103370.0,103340.0,0.73187921]
[1763013548587,0.33787796,103370.0,103340.0,0.69810155]
[1763013548791,0.14439586,103370.0,103340.0,0.69610155]
[1763013548994,0.14439586,103370.0,103340.0,0.72987921]
[1763013549207,0.09258,103360.0,103340.0,0.72987921]
[1763013549832,0.05181586,103370.0,103350.0,0.56229686]
[1763013550040,0.14439586,103370.0,103350.0,0.59607452]
[1763013550215,0.14439586,103370.0,103350.0,0.03377766]
[1763013550620,0.06449,103360.0,103350.0,0.03377766]
[1763013551855,0.05181586,103370.0,103350.0,0.03677766]
[1763013552232,0.00186586,103370.0,103360.0,0.56229686]
[1763013552431,0.04825586,103370.0,103360.0,0.03377766]
[1763013552650,0.20532586,103370.0,103360.0,0.03377766]
[1763013553057,0.00186586,103370.0,103360.0,0.59607452]
[1763013554302,0.20532586,103370.0,103360.0,0.03377766]
[1763013554733,0.20532586,103370.0,103360.0,0.002]
[1763013556053,0.39880559,103370.0,103360.0,0.002]
[1763013556260,0.39880559,103370.0,103340.0,0.21817855]
[1763013556261,0.35056845,103360.0,103340.0,0.21817855]
[1763013556442,0.83478403,103350.0,103340.0,0.13380469]
[1763013556640,0.36506717,103350.0,103340.0,0.13380469]
[1763013557467,0.36506717,103350.0,103340.0,0.13480469]
[1763013557674,0.94736401,103350.0,103340.0,0.13480469]
[1763013557890,0.94736401,103350.0,103340.0,0.13380469]
[1763013558327,0.19358251,103320.0,103300.0,0.05076984]
[1763013558528,0.10858,103310.0,103300.0,0.00071129]
[1763013558741,0.3947521,103310.0,103300.0,0.00071129]
[1763013560884,0.3947521,103310.0,103300.0,0.00171129]
[1763013561097,0.20116,103310.0,103300.0,0.00171129]
[1763013563094,0.3947521,103310.0,103300.0,0.00171129]
[1763013563408,0.20116,103310.0,103300.0,0.00171129]
[1763013563816,0.10858,103310.0,103300.0,0.00171129]
[1763013564022,0.04409,103310.0,103300.0,0.56400815]
[1763013564883,0.04639,103320.0,103300.0,0.58714815]
[1763013565096,0.04639,103320.0,103310.0,0.56229686]
[1763013565735,0.04639,103320.0,103300.0,0.58714815]
[1763013565960,0.04639,103320.0,103300.0,0.58614815]
[1763013566209,0.04639,103320.0,103300.0,0.56300815]
[1763013566433,0.04639,103320.0,103300.0,0.56400815]
[1763013566659,0.06449,103310.0,103300.0,0.00171129]
[1763013566984,0.13897,103320.0,103300.0,0.56400815]
[1763013567393,0.13897,103320.0,103300.0,0.56300815]
[1763013568202,0.13897,103320.0,103300.0,0.56500815]
[1763013568577,0.06449,103310.0,103300.0,0.00271129]
[1763013568753,0.15707,103310.0,103300.0,0.00271129]
[1763013569391,0.15707,103310.0,103300.0,0.00071129]
[1763013569804,0.3506621,103310.0,103300.0,0.00171129]
[1763013570137,0.3506621,103310.0,103300.0,0.00071129]
[1763013570543,0.15707,103310.0,103300.0,0.00271129]
[1763013571184,0.3506621,103310.0,103300.0,0.00271129]
[1763013572319,0.15707,103310.0,103300.0,0.00271129]
[1763013573479,0.06449,103310.0,103300.0,0.00271129]
[1763013574703,0.3569421,103310.0,103300.0,0.00271129]
[1763013575115,0.16335,103310.0,103300.0,0.00271129]
[1763013575335,0.3569421,103310.0,103300.0,0.00271129]
[1763013575750,0.20332553,103290.0,103260.0,0.05052649]
[1763013575967,0.34809074,103280.0,103260.0,0.00014021]
[1763013576184,0.06079,103270.0,103260.0,0.00014021]
[1763013576393,0.35331708,103270.0,103260.0,0.00014021]
[1763013576642,0.15965,103270.0,103260.0,0.00014021]
[1763013576911,0.35331708,103270.0,103260.0,0.00014021]
[1763013579404,0.35331708,103270.0,103220.0,0.07677649]
[1763013579405,0.75602022,103240.0,103220.0,0.0004]
[1763013579606,0.75602022,103240.0,103220.0,0.00054032]
[1763013579607,0.07846,103230.0,103220.0,0.00054032]
[1763013579827,0.17732,103230.0,103220.0,0.00054032]
[1763013580033,0.37106212,103230.0,103220.0,0.00054032]
[1763013581122,0.93335898,103230.0,103220.0,0.00054032]
[1763013582184,0.17732,103230.0,103220.0,0.00054032]
[1763013582399,0.07846,103230.0,103220.0,0.00054032]
[1763013582612,0.07846,103230.0,103220.0,0.00248873]
[1763013582613,0.01767,103230.0,103220.0,0.00248873]
[1763013583674,0.01767,103230.0,103220.0,0.00348873]
[1763013584254,0.01767,103230.0,103220.0,0.00248873]
[1763013584454,0.01767,103230.0,103220.0,0.00448873]
[1763013584860,0.37106212,103230.0,103220.0,0.00448873]
[1763013585271,0.17732,103230.0,103220.0,0.00448873]
[1763013585477,0.37106212,103230.0,103220.0,0.00448873]
[1763013585674,0.93335898,103230.0,103220.0,0.00448873]
[1763013586625,0.93335898,103230.0,103220.0,0.00248873]
[1763013587040,0.17732,103230.0,103220.0,0.00348873]
[1763013587387,0.93335898,103230.0,103220.0,0.00348873]
[1763013587587,0.93335898,103230.0,103220.0,0.00248873]
[1763013587780,0.73961686,103230.0,103220.0,0.00348873]
[1763013587907,0.37106212,103230.0,103220.0,0.00348873]
[1763013588114,0.93335898,103230.0,103220.0,0.00348873]
[1763013589581,0.93335898,103230.0,103220.0,0.00248873]
[1763013589917,0.93335898,103230.0,103220.0,0.00348873]
[1763013590526,1.03177933,103230.0,103220.0,0.00348873]
[1763013590740,0.93335898,103230.0,103220.0,0.00348873]
[1763013590944,1.1983139,103230.0,103220.0,0.00348873]
[1763013591160,1.1910479,103230.0,103220.0,0.00348873]
[1763013592115,1.20104789,103230.0,103220.0,0.00348873]
[1763013592517,1.21104788,103230.0,103220.0,0.00348873]
[1763013593933,1.25446662,103230.0,103220.0,0.00348873]
[1763013595448,1.1910479,103230.0,103220.0,0.00348873]
[1763013596359,0.36379612,103230.0,103220.0,0.00348873]
[1763013597751,0.170054,103230.0,103220.0,0.00348873]
[1763013597950,0.071194,103230.0,103220.0,0.00348873]
[1763013599185,0.010404,103230.0,103220.0,0.00348873]
[1763013599529,0.071194,103230.0,103220.0,0.00348873]
[1763013600207,0.04665,103250.0,103230.0,0.323]
[1763013600562,0.14058,103250.0,103230.0,0.323]
[1763013600775,0.04665,103250.0,103230.0,1.15025178]
[1763013601202,0.34397034,103250.0,103220.0,0.03520032]
[1763013601429,0.14058,103250.0,103230.0,0.323]
[1763013601877,0.14058,103260.0,103240.0,0.86091178]
[1763013602074,0.04665,103260.0,103250.0,0.03366]
[1763013602285,0.04571,103270.0,103250.0,0.39032]
[1763013602711,0.13983,103280.0,103260.0,0.35666]
[1763013602921,0.0459,103280.0,103260.0,0.35666]
[1763013603141,0.33348235,103280.0,103260.0,0.35666]
[1763013603367,0.13983,103280.0,103260.0,0.35666]
[1763013603577,0.04571,103290.0,103270.0,0.06732]
[1763013603829,0.04571,103290.0,103270.0,0.39032]
[1763013604040,0.04571,103290.0,103270.0,1.2177121]
[1763013604469,0.04571,103290.0,103280.0,0.86091178]
[1763013604683,0.04571,103300.0,103280.0,0.86091178]
[1763013604887,0.23932283,103300.0,103280.0,0.35666]
[1763013605127,0.30104958,103290.0,103270.0,0.00014032]
[1763013605336,0.19798,103290.0,103270.0,0.00014032]
[1763013605767,0.39160986,103290.0,103270.0,0.00014032]
[1763013606399,0.04734,103290.0,103270.0,0.8620521]
[1763013606602,0.04571,103300.0,103280.0,0.06732]
[1763013607020,0.04571,103300.0,103280.0,0.89457178]
[1763013607224,0.23932158,103300.0,103280.0,0.06732]
[1763013607446,0.23932158,103300.0,103280.0,0.03366]
[1763013607686,0.04571,103300.0,103280.0,0.03366]
[1763013607907,0.04571,103300.0,103280.0,0.06732]
[1763013608555,0.04571,103300.0,103290.0,0.323]
[1763013608769,0.13627,103300.0,103290.0,0.323]
[1763013608975,0.30105035,103290.0,103270.0,0.00014032]
[1763013609197,0.39161031,103290.0,103270.0,0.00014032]
[1763013609844,0.19798,103290.0,103270.0,0.32314032]
[1763013610058,0.39161095,103290.0,103270.0,0.32314032]
[1763013610491,0.39161095,103290.0,103270.0,1.1503921]
[1763013610492,0.04734,103290.0,103270.0,1.1503921]
[1763013610712,0.04571,103300.0,103280.0,0.03366]
[1763013611144,0.3298827,103300.0,103280.0,0.03414682]
[1763013611360,0.3298827,103300.0,103280.0,0.03366]
[1763013611651,0.3298827,103300.0,103290.0,0.00024339]
[1763013611876,0.2393227,103300.0,103290.0,0.00024339]
[1763013612098,0.2994027,103300.0,103290.0,0.00024339]
[1763013612535,0.3899627,103300.0,103290.0,0.00024339]
[1763013615889,1.21721448,103300.0,103290.0,0.00024339]
[1763013616526,0.3899627,103300.0,103290.0,0.00024339]
[1763013616728,1.21721448,103300.0,103290.0,0.00024339]
[1763013616938,1.26063322,103300.0,103290.0,0.00024339]
[1763013620072,1.2806332,103300.0,103290.0,0.00024339]
[1763013620909,1.6036332,103300.0,103290.0,0.00024339]
[1763013621072,0.33299999,103300.0,103290.0,0.03390339]
[1763013621277,0.0002,103400.0,103380.0,0.02999997]
[1763013621487,0.0002,103440.0,103430.0,0.00999999]
[1763013621733,0.0002,103440.0,103430.0,0.35299997]
[1763013621920,0.0203759,103440.0,103430.0,1.22367049]
[1763013622122,0.0203759,103440.0,103430.0,1.23917269]
[1763013622350,0.0588276,103440.0,103430.0,1.27672166]
[1763013622556,0.00285564,103440.0,103430.0,1.27672166]
[1763013622749,0.15349564,103440.0,103430.0,0.44946988]
[1763013622954,0.15349564,103440.0,103430.0,1.27672166]
[1763013623156,0.15349564,103440.0,103430.0,1.3017586]
[1763013623358,0.00285564,103440.0,103430.0,1.28430583]
[1763013623558,0.00285564,103440.0,103430.0,1.47767332]
[1763013623739,0.00285564,103440.0,103430.0,1.28430583]
[1763013624161,0.00285564,103440.0,103430.0,1.25926889]
[1763013624958,0.00285564,103440.0,103430.0,1.48113638]
[1763013625338,0.00285564,103440.0,103430.0,1.52963638]
[1763013625542,0.00285564,103440.0,103430.0,1.33626889]
[1763013625961,0.00285564,103440.0,103430.0,0.50901711]
[1763013626171,0.00285564,103440.0,103430.0,1.52963638]
[1763013626379,0.00285564,103440.0,103430.0,1.33626889]
[1763013626596,0.00285564,103440.0,103430.0,1.52963638]
[1763013627458,0.00285564,103440.0,103430.0,1.53263638]
[1763013627670,0.00285564,103440.0,103430.0,1.33926889]